[Event "*** SCC Grand Prix: Titled Tuesday Blitz"]
[Site "Chess.com"]
[Date "2020.06.23"]
[Round "6"]
[White "MartinCerveny"]
[Black "TheNextLevelFan"]
[Result "1/2-1/2"]
[WhiteElo "2665"]
[BlackElo "2502"]
[TimeControl "180+1"]
[EndTime "11:06:24 PDT"]
[Termination "Game drawn by agreement"]

1. d4 {[%clk 0:03:00.9]} 1... d5 {[%clk 0:03:00]} 2. c4 {[%clk 0:03:00.4]} 2...
dxc4 {[%clk 0:03:00.9]} 3. Nf3 {[%clk 0:02:55.7]} 3... Nf6 {[%clk 0:03:00.6]} 4.
e3 {[%clk 0:02:51.8]} 4... e6 {[%clk 0:03:00.5]} 5. Bxc4 {[%clk 0:02:51.3]} 5...
a6 {[%clk 0:03:01.1]} 6. O-O {[%clk 0:02:50.6]} 6... c5 {[%clk 0:03:01.2]} 7. a4
{[%clk 0:02:49.8]} 7... Nc6 {[%clk 0:02:58.6]} 8. Nc3 {[%clk 0:02:49.6]} 8...
Be7 {[%clk 0:02:52.4]} 9. dxc5 {[%clk 0:02:48.4]} 9... Qxd1 {[%clk 0:02:49.2]}
10. Rxd1 {[%clk 0:02:47.5]} 10... Bxc5 {[%clk 0:02:49.8]} 11. h3 {[%clk
0:02:47.6]} 11... Bd7 {[%clk 0:02:42.5]} 12. e4 {[%clk 0:02:47]} 12... Na5
{[%clk 0:02:22]} 13. Ba2 {[%clk 0:02:43.2]} 13... Bc6 {[%clk 0:02:22.5]} 14. Re1
{[%clk 0:02:29.7]} 14... Bb4 {[%clk 0:02:14.2]} 15. e5 {[%clk 0:02:12.2]} 15...
Nd5 {[%clk 0:02:00]} 16. Nxd5 {[%clk 0:01:46.4]} 16... Bxd5 {[%clk 0:01:59.5]}
17. Bd2 {[%clk 0:01:44.6]} 17... Bxd2 {[%clk 0:01:45.9]} 18. Nxd2 {[%clk
0:01:45.5]} 18... Bxa2 {[%clk 0:01:45.9]} 19. Rxa2 {[%clk 0:01:44.9]} 19... Rd8
{[%clk 0:01:34.7]} 20. b4 {[%clk 0:01:41.7]} 20... Nc6 {[%clk 0:01:34.3]} 21.
Rb2 {[%clk 0:01:25.1]} 21... Rd4 {[%clk 0:01:23.5]} 22. b5 {[%clk 0:01:22.4]}
22... axb5 {[%clk 0:01:24.4]} 23. axb5 {[%clk 0:01:21.2]} 23... Nb4 {[%clk
0:01:24]} 24. Nf3 {[%clk 0:01:21]} 24... Rc4 {[%clk 0:01:19.5]} 25. Reb1 {[%clk
0:01:17.9]} 25... Nd5 {[%clk 0:01:16.1]} 26. Ra1 {[%clk 0:01:16.2]} 26... Kd7
{[%clk 0:01:07.8]} 27. Ra7 {[%clk 0:01:07]} 27... Kc7 {[%clk 0:01:06.2]} 28. b6+
{[%clk 0:01:03.3]} 28... Nxb6 {[%clk 0:00:58.4]} 29. Nd2 {[%clk 0:01:02.8]}
29... Rc1+ {[%clk 0:00:54.9]} 30. Kh2 {[%clk 0:01:02.6]} 30... Ra8 {[%clk
0:00:47.7]} 31. Rxa8 {[%clk 0:00:56]} 31... Nxa8 {[%clk 0:00:48.6]} 32. Ne4
{[%clk 0:00:54.4]} 32... Nb6 {[%clk 0:00:31.6]} 33. Nd6 {[%clk 0:00:53.1]} 33...
Kc6 {[%clk 0:00:30.5]} 34. Nxf7 {[%clk 0:00:50.9]} 34... Nc4 {[%clk 0:00:26.3]}
35. Nd8+ {[%clk 0:00:40.6]} 35... Kd7 {[%clk 0:00:20.8]} 36. Rxb7+ {[%clk
0:00:40.2]} 36... Kxd8 {[%clk 0:00:20.7]} 37. Rxg7 {[%clk 0:00:40.1]} 37... Nxe5
{[%clk 0:00:20.8]} 38. Rxh7 {[%clk 0:00:40.3]} 38... Rc2 {[%clk 0:00:19.6]} 39.
f4 {[%clk 0:00:38.7]} 39... Nd7 {[%clk 0:00:19.1]} 40. Rg7 {[%clk 0:00:37.2]}
40... Ke8 {[%clk 0:00:19]} 41. h4 {[%clk 0:00:37.2]} 41... Nf6 {[%clk
0:00:19.2]} 42. Rg5 {[%clk 0:00:35.2]} 42... Kf7 {[%clk 0:00:18.9]} 43. h5
{[%clk 0:00:34.8]} 43... Ne4 {[%clk 0:00:18.9]} 44. Rg4 {[%clk 0:00:32.2]} 44...
Rc5 {[%clk 0:00:18.4]} 45. Rh4 {[%clk 0:00:29.3]} 45... Nf6 {[%clk 0:00:18.6]}
46. g4 {[%clk 0:00:29.2]} 46... Nxg4+ {[%clk 0:00:18.7]} 47. Rxg4 {[%clk
0:00:28.7]} 47... Rxh5+ {[%clk 0:00:19.6]} 48. Kg3 {[%clk 0:00:29.1]} 48... Rb5
{[%clk 0:00:19.4]} 49. Kh4 {[%clk 0:00:27.9]} 49... Kf6 {[%clk 0:00:19.1]}
1/2-1/2

[Event "*** SCC Grand Prix: Titled Tuesday Blitz"]
[Site "Chess.com"]
[Date "2020.06.23"]
[Round "6"]
[White "imdarealist"]
[Black "ZEN-22"]
[Result "1/2-1/2"]
[WhiteElo "2312"]
[BlackElo "2436"]
[TimeControl "180+1"]
[EndTime "11:06:29 PDT"]
[Termination "Game drawn by repetition"]

1. d4 {[%clk 0:03:00.9]} 1... e5 {[%clk 0:03:00.9]} 2. dxe5 {[%clk 0:02:58.5]}
2... Nc6 {[%clk 0:03:01.3]} 3. Nf3 {[%clk 0:02:56.6]} 3... f6 {[%clk 0:03:02.2]}
4. e6 {[%clk 0:02:51.2]} 4... d5 {[%clk 0:03:01.3]} 5. Bf4 {[%clk 0:02:47]} 5...
Bxe6 {[%clk 0:03:00.9]} 6. e3 {[%clk 0:02:47.3]} 6... g5 {[%clk 0:02:59]} 7. Bg3
{[%clk 0:02:41.7]} 7... h5 {[%clk 0:02:59.9]} 8. h4 {[%clk 0:02:40.2]} 8... g4
{[%clk 0:02:58.1]} 9. Nd4 {[%clk 0:02:39.2]} 9... Bd7 {[%clk 0:02:57.2]} 10. Bd3
{[%clk 0:02:31.8]} 10... Nge7 {[%clk 0:02:56.1]} 11. c3 {[%clk 0:02:17.1]} 11...
a6 {[%clk 0:02:55.2]} 12. Nd2 {[%clk 0:02:16.1]} 12... Ne5 {[%clk 0:02:52]} 13.
Bc2 {[%clk 0:02:12.7]} 13... c5 {[%clk 0:02:50.3]} 14. Ne2 {[%clk 0:02:13]}
14... Bf5 {[%clk 0:02:46.9]} 15. Nf4 {[%clk 0:02:09.9]} 15... Qd7 {[%clk
0:02:40]} 16. Nb3 {[%clk 0:02:04.2]} 16... Bxc2 {[%clk 0:02:35]} 17. Qxc2 {[%clk
0:02:05.1]} 17... Nf5 {[%clk 0:02:25.5]} 18. O-O-O {[%clk 0:01:38.5]} 18... c4
{[%clk 0:02:22.2]} 19. Nd4 {[%clk 0:01:32.9]} 19... Nxd4 {[%clk 0:02:19.7]} 20.
Rxd4 {[%clk 0:01:25.7]} 20... Qh7 {[%clk 0:02:09.8]} 21. Nxd5 {[%clk 0:01:03.1]}
21... O-O-O {[%clk 0:01:48.9]} 22. Nb6+ {[%clk 0:00:47.6]} 22... Kc7 {[%clk
0:01:47.9]} 23. Nxc4 {[%clk 0:00:39.3]} 23... Bd6 {[%clk 0:01:19.7]} 24. Nxd6
{[%clk 0:00:34.2]} 24... Qxc2+ {[%clk 0:01:14.1]} 25. Kxc2 {[%clk 0:00:33]}
25... Rxd6 {[%clk 0:01:15]} 26. Rhd1 {[%clk 0:00:28.2]} 26... Re6 {[%clk
0:01:11.6]} 27. Rd7+ {[%clk 0:00:24.3]} 27... Kc8 {[%clk 0:01:11.5]} 28. Rg7
{[%clk 0:00:20.4]} 28... Rhe8 {[%clk 0:00:50]} 29. Bxe5 {[%clk 0:00:20.4]} 29...
Rxe5 {[%clk 0:00:48.3]} 30. Rdd7 {[%clk 0:00:20.8]} 30... Rb5 {[%clk 0:00:47.7]}
31. Rc7+ {[%clk 0:00:20.1]} 31... Kb8 {[%clk 0:00:47.6]} 32. Rcf7 {[%clk
0:00:20.5]} 32... Re6 {[%clk 0:00:47]} 33. Rh7 {[%clk 0:00:18.7]} 33... Reb6
{[%clk 0:00:46.2]} 34. b3 {[%clk 0:00:17.8]} 34... Rf5 {[%clk 0:00:47.1]} 35. f4
{[%clk 0:00:10.7]} 35... gxf3 {[%clk 0:00:46.2]} 36. gxf3 {[%clk 0:00:11.6]}
36... Rxf3 {[%clk 0:00:43.9]} 37. Rh8+ {[%clk 0:00:11.4]} 37... Ka7 {[%clk
0:00:43.2]} 38. Rxh5 {[%clk 0:00:12.3]} 38... Rxe3 {[%clk 0:00:41.7]} 39. Rf5
{[%clk 0:00:11.1]} 39... Rh3 {[%clk 0:00:41.5]} 40. h5 {[%clk 0:00:10.9]} 40...
Rh2+ {[%clk 0:00:42.3]} 41. Kb1 {[%clk 0:00:10.6]} 41... Re6 {[%clk 0:00:41.5]}
42. Rf1 {[%clk 0:00:08]} 42... Ree2 {[%clk 0:00:41.8]} 43. h6 {[%clk 0:00:03.9]}
43... Rb2+ {[%clk 0:00:42.7]} 44. Ka1 {[%clk 0:00:03.8]} 44... Rxa2+ {[%clk
0:00:43.5]} 45. Kb1 {[%clk 0:00:04.2]} 45... Rhb2+ {[%clk 0:00:43.2]} 46. Kc1
{[%clk 0:00:04.6]} 46... Rxb3 {[%clk 0:00:44.1]} 47. h7 {[%clk 0:00:03.1]} 47...
Rxc3+ {[%clk 0:00:44.1]} 48. Kb1 {[%clk 0:00:03.5]} 48... Rca3 {[%clk
0:00:42.7]} 49. h8=Q {[%clk 0:00:03.4]} 49... Ra1+ {[%clk 0:00:42.3]} 50. Kb2
{[%clk 0:00:04.3]} 50... R3a2+ {[%clk 0:00:43]} 51. Kb3 {[%clk 0:00:04.1]} 51...
Ra3+ {[%clk 0:00:43.2]} 52. Kb2 {[%clk 0:00:03.8]} 52... R1a2+ {[%clk 0:00:43]}
53. Kb1 {[%clk 0:00:03.8]} 53... Ra1+ {[%clk 0:00:43.9]} 54. Kb2 {[%clk
0:00:04.2]} 1/2-1/2

[Event "*** SCC Grand Prix: Titled Tuesday Blitz"]
[Site "Chess.com"]
[Date "2020.06.23"]
[Round "6"]
[White "letsgoband"]
[Black "catalin009"]
[Result "1-0"]
[WhiteElo "2562"]
[BlackElo "2325"]
[TimeControl "180+1"]
[EndTime "11:06:30 PDT"]
[Termination "letsgoband won on time"]

1. e4 {[%clk 0:03:00.7]} 1... c6 {[%clk 0:02:59.8]} 2. d4 {[%clk 0:02:59.4]}
2... d5 {[%clk 0:02:59.9]} 3. e5 {[%clk 0:02:59.4]} 3... Bf5 {[%clk 0:02:59.6]}
4. h4 {[%clk 0:03:00]} 4... h6 {[%clk 0:02:56.9]} 5. g4 {[%clk 0:02:45.4]} 5...
Bh7 {[%clk 0:02:55]} 6. c3 {[%clk 0:02:39.9]} 6... e6 {[%clk 0:02:51]} 7. h5
{[%clk 0:02:40]} 7... c5 {[%clk 0:02:48.8]} 8. f4 {[%clk 0:02:39.7]} 8... Nc6
{[%clk 0:02:45.4]} 9. Nf3 {[%clk 0:02:36]} 9... Qb6 {[%clk 0:02:34.1]} 10. Bd3
{[%clk 0:02:27.1]} 10... Be4 {[%clk 0:02:23.9]} 11. Bxe4 {[%clk 0:01:54]} 11...
dxe4 {[%clk 0:02:22.6]} 12. Nfd2 {[%clk 0:01:53.9]} 12... cxd4 {[%clk
0:02:04.8]} 13. Nxe4 {[%clk 0:01:53]} 13... O-O-O {[%clk 0:01:35.4]} 14. Qb3
{[%clk 0:01:40.5]} 14... Qc7 {[%clk 0:01:10.9]} 15. Kf2 {[%clk 0:01:13.4]} 15...
Kb8 {[%clk 0:00:57.7]} 16. Na3 {[%clk 0:01:08.6]} 16... f5 {[%clk 0:00:52.1]}
17. gxf5 {[%clk 0:01:01.2]} 17... exf5 {[%clk 0:00:53]} 18. Ng3 {[%clk
0:00:50.5]} 18... Bc5 {[%clk 0:00:39.5]} 19. Kg2 {[%clk 0:00:35]} 19... d3
{[%clk 0:00:32]} 20. Bd2 {[%clk 0:00:34.5]} 20... Nge7 {[%clk 0:00:30.1]} 21.
Qc4 {[%clk 0:00:25.5]} 21... Bxa3 {[%clk 0:00:24.2]} 22. bxa3 {[%clk 0:00:26.4]}
22... Qa5 {[%clk 0:00:20.5]} 23. Rhb1 {[%clk 0:00:21.9]} 23... Qxa3 {[%clk
0:00:18.1]} 24. Rb5 {[%clk 0:00:17.7]} 24... Rd7 {[%clk 0:00:14.3]} 25. Rab1
{[%clk 0:00:17.3]} 25... Ka8 {[%clk 0:00:12]} 26. R1b2 {[%clk 0:00:17.5]} 26...
Rhd8 {[%clk 0:00:09.6]} 27. Kf3 {[%clk 0:00:17.2]} 27... Qa6 {[%clk 0:00:08.5]}
28. a4 {[%clk 0:00:11.2]} 28... Na5 {[%clk 0:00:07.1]} 29. Qb4 {[%clk
0:00:11.1]} 29... Qc6+ {[%clk 0:00:05.4]} 30. Kf2 {[%clk 0:00:10.9]} 30... Nc4
{[%clk 0:00:04]} 31. Rc5 {[%clk 0:00:10.6]} 31... Nxb2 {[%clk 0:00:02.2]} 32.
Rxc6 {[%clk 0:00:09.5]} 32... Nd1+ {[%clk 0:00:02.1]} 33. Ke1 {[%clk 0:00:09.8]}
33... Nxc6 {[%clk 0:00:02.3]} 34. Qc5 {[%clk 0:00:10]} 34... Nb2 {[%clk
0:00:02.3]} 35. Qb5 {[%clk 0:00:08.3]} 1-0

[Event "*** SCC Grand Prix: Titled Tuesday Blitz"]
[Site "Chess.com"]
[Date "2020.06.23"]
[Round "6"]
[White "zala02"]
[Black "GianmarcoVaR"]
[Result "1-0"]
[WhiteElo "2185"]
[BlackElo "2367"]
[TimeControl "180+1"]
[EndTime "11:06:30 PDT"]
[Termination "zala02 won by checkmate"]

1. d4 {[%clk 0:03:00.9]} 1... g6 {[%clk 0:02:44]} 2. c4 {[%clk 0:02:54.9]} 2...
Bg7 {[%clk 0:02:41.4]} 3. Nc3 {[%clk 0:02:54.6]} 3... d6 {[%clk 0:02:41.3]} 4.
e4 {[%clk 0:02:51.4]} 4... Nd7 {[%clk 0:02:39.4]} 5. Be3 {[%clk 0:02:31.2]} 5...
e5 {[%clk 0:02:39.6]} 6. d5 {[%clk 0:02:30.8]} 6... Bh6 {[%clk 0:02:34.2]} 7.
Bxh6 {[%clk 0:02:01.4]} 7... Nxh6 {[%clk 0:02:35.1]} 8. Qd2 {[%clk 0:02:01.9]}
8... Ng8 {[%clk 0:02:33.8]} 9. Bd3 {[%clk 0:02:00.9]} 9... Kf8 {[%clk 0:02:29]}
10. Nf3 {[%clk 0:01:49.4]} 10... Kg7 {[%clk 0:02:29.5]} 11. O-O {[%clk
0:01:47.7]} 11... Nh6 {[%clk 0:01:58.3]} 12. b4 {[%clk 0:01:41.2]} 12... Qe7
{[%clk 0:01:46.8]} 13. a3 {[%clk 0:01:26.2]} 13... f6 {[%clk 0:01:36.3]} 14.
Rac1 {[%clk 0:01:20.4]} 14... g5 {[%clk 0:01:36.3]} 15. Nb5 {[%clk 0:01:04]}
15... Nf8 {[%clk 0:01:36.1]} 16. c5 {[%clk 0:01:02.1]} 16... Nf7 {[%clk
0:01:16]} 17. cxd6 {[%clk 0:00:58.7]} 17... cxd6 {[%clk 0:01:16.5]} 18. Rc7
{[%clk 0:00:45.1]} 18... Qd8 {[%clk 0:01:11.2]} 19. Rc2 {[%clk 0:00:34.6]} 19...
Bg4 {[%clk 0:00:47.1]} 20. Qe3 {[%clk 0:00:27.5]} 20... a6 {[%clk 0:00:46.6]}
21. Nc7 {[%clk 0:00:23.3]} 21... Rc8 {[%clk 0:00:47]} 22. Rfc1 {[%clk
0:00:22.8]} 22... Qe7 {[%clk 0:00:25.7]} 23. h3 {[%clk 0:00:13.4]} 23... Bxf3
{[%clk 0:00:23.4]} 24. Qxf3 {[%clk 0:00:13.3]} 24... Rd8 {[%clk 0:00:14.8]} 25.
a4 {[%clk 0:00:09.4]} 25... h5 {[%clk 0:00:14.1]} 26. Ne6+ {[%clk 0:00:08.4]}
26... Nxe6 {[%clk 0:00:13.9]} 27. dxe6 {[%clk 0:00:09.3]} 27... Qxe6 {[%clk
0:00:13.8]} 28. Bc4 {[%clk 0:00:09.9]} 28... Qe7 {[%clk 0:00:13.4]} 29. Bd5
{[%clk 0:00:09.6]} 29... Rd7 {[%clk 0:00:13.4]} 30. h4 {[%clk 0:00:06]} 30...
gxh4 {[%clk 0:00:12.6]} 31. Qf5 {[%clk 0:00:04.7]} 31... Ng5 {[%clk 0:00:13]}
32. Rc3 {[%clk 0:00:03]} 32... Kh6 {[%clk 0:00:12]} 33. Rc8 {[%clk 0:00:03.1]}
33... Rh7 {[%clk 0:00:10.5]} 34. Rb8 {[%clk 0:00:02.3]} 34... h3 {[%clk
0:00:09.4]} 35. Rcc8 {[%clk 0:00:02.4]} 35... hxg2 {[%clk 0:00:08.5]} 36. Kxg2
{[%clk 0:00:03.3]} 36... Qg7 {[%clk 0:00:08.4]} 37. Rg8 {[%clk 0:00:02.5]} 37...
Qe7 {[%clk 0:00:08.1]} 38. Qg6# {[%clk 0:00:02.2]} 1-0

[Event "*** SCC Grand Prix: Titled Tuesday Blitz"]
[Site "Chess.com"]
[Date "2020.06.23"]
[Round "6"]
[White "HrvojeZagreb"]
[Black "Belka1989"]
[Result "1-0"]
[WhiteElo "2125"]
[BlackElo "2323"]
[TimeControl "180+1"]
[EndTime "11:06:30 PDT"]
[Termination "HrvojeZagreb won on time"]

1. d4 {[%clk 0:03:00.9]} 1... Nf6 {[%clk 0:02:52.7]} 2. Bf4 {[%clk 0:03:00.1]}
2... d5 {[%clk 0:02:29.5]} 3. e3 {[%clk 0:03:00]} 3... e6 {[%clk 0:02:29.6]} 4.
Bd3 {[%clk 0:02:53.5]} 4... c5 {[%clk 0:02:30.5]} 5. c3 {[%clk 0:02:52.2]} 5...
Nc6 {[%clk 0:02:26.1]} 6. Nd2 {[%clk 0:02:52]} 6... Bd6 {[%clk 0:02:25.8]} 7.
Bg3 {[%clk 0:02:50.8]} 7... O-O {[%clk 0:02:10.4]} 8. f4 {[%clk 0:02:49.5]} 8...
b6 {[%clk 0:01:36.5]} 9. Ngf3 {[%clk 0:02:48.3]} 9... Bb7 {[%clk 0:01:35.2]} 10.
Ne5 {[%clk 0:02:46.7]} 10... Ne7 {[%clk 0:01:32]} 11. Bh4 {[%clk 0:02:41.1]}
11... Nf5 {[%clk 0:01:26.3]} 12. Bxf5 {[%clk 0:02:36.5]} 12... exf5 {[%clk
0:01:26.8]} 13. O-O {[%clk 0:02:36.4]} 13... Qe7 {[%clk 0:01:05.7]} 14. Qb1
{[%clk 0:02:30.7]} 14... Qe6 {[%clk 0:01:02.8]} 15. Rf3 {[%clk 0:01:58.1]} 15...
g6 {[%clk 0:01:01]} 16. Bxf6 {[%clk 0:01:52.2]} 16... Qxf6 {[%clk 0:01:00.7]}
17. Qe1 {[%clk 0:01:50.9]} 17... Rfe8 {[%clk 0:00:51.6]} 18. g4 {[%clk
0:01:41.1]} 18... Qe7 {[%clk 0:00:29.9]} 19. gxf5 {[%clk 0:01:35]} 19... gxf5
{[%clk 0:00:26.3]} 20. Rg3+ {[%clk 0:01:27.2]} 20... Kh8 {[%clk 0:00:24.2]} 21.
Rh3 {[%clk 0:01:16.4]} 21... Rg8+ {[%clk 0:00:19.4]} 22. Kh1 {[%clk 0:01:16.4]}
22... Rg7 {[%clk 0:00:19.2]} 23. Ndf3 {[%clk 0:01:10.3]} 23... Rag8 {[%clk
0:00:14.6]} 24. Qh4 {[%clk 0:00:59.9]} 24... f6 {[%clk 0:00:12.8]} 25. Qh5
{[%clk 0:00:25.6]} 25... fxe5 {[%clk 0:00:11.1]} 26. fxe5 {[%clk 0:00:25.8]}
26... Bc7 {[%clk 0:00:11.3]} 27. Rg1 {[%clk 0:00:18.4]} 27... Bd8 {[%clk
0:00:10.3]} 28. Rxg7 {[%clk 0:00:16.5]} 28... Qxg7 {[%clk 0:00:11.2]} 29. Rg3
{[%clk 0:00:15.9]} 29... Qf8 {[%clk 0:00:07.3]} 30. Rxg8+ {[%clk 0:00:12.1]}
30... Qxg8 {[%clk 0:00:08.2]} 31. h4 {[%clk 0:00:09.3]} 31... Qg6 {[%clk
0:00:08.3]} 32. Qxg6 {[%clk 0:00:07.7]} 32... hxg6 {[%clk 0:00:09.2]} 33. Kg2
{[%clk 0:00:07.9]} 33... cxd4 {[%clk 0:00:06.7]} 34. exd4 {[%clk 0:00:07.7]}
34... Bc8 {[%clk 0:00:02.9]} 35. Kg3 {[%clk 0:00:07.7]} 35... Be6 {[%clk
0:00:02.3]} 36. Kf4 {[%clk 0:00:08.6]} 36... Kg7 {[%clk 0:00:01.1]} 37. Ng5
{[%clk 0:00:08.2]} 1-0

[Event "*** SCC Grand Prix: Titled Tuesday Blitz"]
[Site "Chess.com"]
[Date "2020.06.23"]
[Round "6"]
[White "QuintilianoR"]
[Black "THE_PLAYER6"]
[Result "1-0"]
[WhiteElo "2631"]
[BlackElo "2466"]
[TimeControl "180+1"]
[EndTime "11:06:34 PDT"]
[Termination "QuintilianoR won on time"]

1. d4 {[%clk 0:03:00.9]} 1... d5 {[%clk 0:02:59.1]} 2. Nf3 {[%clk 0:03:01]} 2...
Nf6 {[%clk 0:02:58.4]} 3. c4 {[%clk 0:03:01.3]} 3... e6 {[%clk 0:02:58.2]} 4.
Nc3 {[%clk 0:03:00.8]} 4... Be7 {[%clk 0:02:57.2]} 5. Bg5 {[%clk 0:03:00.8]}
5... h6 {[%clk 0:02:52.2]} 6. Bh4 {[%clk 0:03:00.1]} 6... O-O {[%clk 0:02:51.9]}
7. e3 {[%clk 0:03:00]} 7... b6 {[%clk 0:02:52.2]} 8. Bxf6 {[%clk 0:02:48.6]}
8... Bxf6 {[%clk 0:02:51.3]} 9. cxd5 {[%clk 0:02:49.2]} 9... exd5 {[%clk
0:02:51.4]} 10. Rc1 {[%clk 0:02:48.3]} 10... Be6 {[%clk 0:02:08.2]} 11. Bb5
{[%clk 0:02:45.9]} 11... c5 {[%clk 0:02:04.1]} 12. dxc5 {[%clk 0:02:43.1]} 12...
bxc5 {[%clk 0:02:04]} 13. O-O {[%clk 0:02:43.7]} 13... Qb6 {[%clk 0:01:57.8]}
14. Qe2 {[%clk 0:02:11.9]} 14... c4 {[%clk 0:01:33.6]} 15. Ba4 {[%clk
0:02:10.1]} 15... Na6 {[%clk 0:01:32.9]} 16. Rfd1 {[%clk 0:02:07.6]} 16... Nc5
{[%clk 0:01:32.6]} 17. Bc2 {[%clk 0:01:58.6]} 17... Rab8 {[%clk 0:01:17.6]} 18.
Nxd5 {[%clk 0:01:56.1]} 18... Bxd5 {[%clk 0:01:07.7]} 19. Rxd5 {[%clk
0:01:55.4]} 19... Bxb2 {[%clk 0:00:58.7]} 20. Rb1 {[%clk 0:01:47.6]} 20... c3
{[%clk 0:00:58.3]} 21. Nd4 {[%clk 0:01:43.9]} 21... Ne6 {[%clk 0:00:53.5]} 22.
Nf5 {[%clk 0:01:19.3]} 22... Rfd8 {[%clk 0:00:46.9]} 23. h4 {[%clk 0:01:11.4]}
23... Qb7 {[%clk 0:00:34.3]} 24. Rxd8+ {[%clk 0:01:03.1]} 24... Rxd8 {[%clk
0:00:35.2]} 25. Qg4 {[%clk 0:00:59]} 25... Kf8 {[%clk 0:00:31.6]} 26. Bb3 {[%clk
0:00:58.8]} 26... Qc7 {[%clk 0:00:17.6]} 27. Qb4+ {[%clk 0:00:38.1]} 27... Kg8
{[%clk 0:00:14.8]} 28. Bc2 {[%clk 0:00:32.7]} 28... Rd2 {[%clk 0:00:12]} 29. Qe4
{[%clk 0:00:32.8]} 29... g6 {[%clk 0:00:08.2]} 30. Nxh6+ {[%clk 0:00:31.8]}
30... Kg7 {[%clk 0:00:08.7]} 31. Ng4 {[%clk 0:00:29.4]} 31... Qd6 {[%clk
0:00:04.1]} 32. h5 {[%clk 0:00:16]} 32... gxh5 {[%clk 0:00:03.6]} 33. Qh7+
{[%clk 0:00:15.5]} 33... Kf8 {[%clk 0:00:02.2]} 34. Qh8+ {[%clk 0:00:16]} 34...
Ke7 {[%clk 0:00:02.6]} 35. Qf6+ {[%clk 0:00:16.5]} 35... Ke8 {[%clk 0:00:02.7]}
36. Ba4+ {[%clk 0:00:17]} 36... Kf8 {[%clk 0:00:02]} 37. Qh8+ {[%clk 0:00:17.2]}
37... Ke7 {[%clk 0:00:02.9]} 38. Qf6+ {[%clk 0:00:17.4]} 38... Kf8 {[%clk
0:00:03.4]} 39. Ne5 {[%clk 0:00:18]} 39... c2 {[%clk 0:00:02.7]} 40. Ng6+ {[%clk
0:00:17.8]} 40... Kg8 {[%clk 0:00:01.5]} 41. Rxb2 {[%clk 0:00:17.3]} 1-0

[Event "*** SCC Grand Prix: Titled Tuesday Blitz"]
[Site "Chess.com"]
[Date "2020.06.23"]
[Round "6"]
[White "ENajer77"]
[Black "obliviate12"]
[Result "1-0"]
[WhiteElo "2693"]
[BlackElo "2831"]
[TimeControl "180+1"]
[EndTime "11:06:36 PDT"]
[Termination "ENajer77 won by resignation"]

1. d4 {[%clk 0:03:00.9]} 1... d5 {[%clk 0:02:59.5]} 2. c4 {[%clk 0:02:59.9]}
2... e6 {[%clk 0:02:59.8]} 3. Nc3 {[%clk 0:02:59.2]} 3... a6 {[%clk 0:02:59.6]}
4. Nf3 {[%clk 0:02:56.9]} 4... dxc4 {[%clk 0:02:58.1]} 5. e3 {[%clk 0:02:54.8]}
5... b5 {[%clk 0:02:58.2]} 6. a4 {[%clk 0:02:54.7]} 6... b4 {[%clk 0:02:57.8]}
7. Na2 {[%clk 0:02:53.1]} 7... c5 {[%clk 0:02:52.4]} 8. Bxc4 {[%clk 0:02:52.7]}
8... Bb7 {[%clk 0:02:52.8]} 9. O-O {[%clk 0:02:52]} 9... Nf6 {[%clk 0:02:52.5]}
10. Bd2 {[%clk 0:02:48.9]} 10... Nc6 {[%clk 0:02:44.1]} 11. Nc1 {[%clk
0:02:03.9]} 11... cxd4 {[%clk 0:02:40.6]} 12. Nb3 {[%clk 0:02:03.2]} 12... d3
{[%clk 0:02:14]} 13. Qb1 {[%clk 0:02:02.5]} 13... Be7 {[%clk 0:02:05.4]} 14.
Qxd3 {[%clk 0:01:55.7]} 14... Qxd3 {[%clk 0:02:00.6]} 15. Bxd3 {[%clk
0:01:34.6]} 15... O-O-O {[%clk 0:01:46]} 16. Bc2 {[%clk 0:01:18.1]} 16... Kb8
{[%clk 0:01:43.5]} 17. Rfd1 {[%clk 0:01:17.8]} 17... Nd7 {[%clk 0:01:36.7]} 18.
Be1 {[%clk 0:01:08.5]} 18... Nb6 {[%clk 0:01:26]} 19. Bd3 {[%clk 0:00:55]} 19...
a5 {[%clk 0:01:17]} 20. Bb5 {[%clk 0:00:54.2]} 20... Bf6 {[%clk 0:01:03.8]} 21.
Rxd8+ {[%clk 0:00:47.2]} 21... Rxd8 {[%clk 0:00:59.6]} 22. Bxc6 {[%clk 0:00:46]}
22... Bxc6 {[%clk 0:00:59.5]} 23. Nxa5 {[%clk 0:00:45.9]} 23... Be4 {[%clk
0:00:52.8]} 24. Nd4 {[%clk 0:00:33.3]} 24... Bxd4 {[%clk 0:00:28]} 25. exd4
{[%clk 0:00:33]} 25... Rxd4 {[%clk 0:00:28.9]} 26. f3 {[%clk 0:00:32.6]} 26...
Bb7 {[%clk 0:00:13.2]} 27. Bf2 {[%clk 0:00:31.9]} 27... Nc4 {[%clk 0:00:11.4]}
28. Bxd4 {[%clk 0:00:29.8]} 28... Nxa5 {[%clk 0:00:12.3]} 29. Bxg7 {[%clk
0:00:29.3]} 29... b3 {[%clk 0:00:11.5]} 30. Bc3 {[%clk 0:00:28]} 30... Nc4
{[%clk 0:00:11.5]} 31. Kf2 {[%clk 0:00:28]} 31... Ka7 {[%clk 0:00:11.4]} 32. Rd1
{[%clk 0:00:27.2]} 32... Ka6 {[%clk 0:00:12.3]} 33. Rd4 {[%clk 0:00:26.7]} 33...
Bd5 {[%clk 0:00:13.2]} 34. Rh4 {[%clk 0:00:26.2]} 34... f5 {[%clk 0:00:14.1]}
35. Rxh7 {[%clk 0:00:25.4]} 35... Kb6 {[%clk 0:00:15]} 36. h4 {[%clk 0:00:25]}
36... Kc5 {[%clk 0:00:15.9]} 37. h5 {[%clk 0:00:24.8]} 37... e5 {[%clk
0:00:15.5]} 38. h6 {[%clk 0:00:24.5]} 38... e4 {[%clk 0:00:15.6]} 39. Rc7+
{[%clk 0:00:22.3]} 39... Kd6 {[%clk 0:00:15.6]} 40. h7 {[%clk 0:00:21.4]} 40...
Kxc7 {[%clk 0:00:14.6]} 41. h8=Q {[%clk 0:00:20]} 41... e3+ {[%clk 0:00:15.5]}
42. Ke1 {[%clk 0:00:19.1]} 1-0